bitfinex-derivatives/quotes_SOLF0:USTF0_20250705
["timestamp","ask_amount","ask_price","bid_price","bid_amount"]
[1751731917072,6.8024,146.97,146.96,241.76]
[1751731919574,6.8021,146.98,146.96,241.76]
[1751731920873,6.8024,146.97,146.96,241.76]
[1751731923274,6.8022,146.98,146.96,241.76]
[1751731923674,4.71024839,147.01,146.96,241.76]
[1751731923875,3.01502932,146.99,146.96,241.76]
[1751731924071,6.8024,146.97,146.96,241.76]
[1751731924874,6.8024,146.97,146.96,46.34]
[1751731925075,6.8024,146.97,146.96,241.72]
[1751731926269,6.8034,146.95,146.94,3.01502932]
[1751731926574,6.8034,146.95,146.94,198.37502932]
[1751731927778,6.8032,146.96,146.94,198.41502932]
[1751731931779,6.8032,146.96,146.94,195.4]
[1751731931980,6.8032,146.96,146.94,198.41502932]
[1751731932185,6.8032,146.96,146.94,195.4]
[1751731932378,6.8032,146.96,146.94,198.41502932]
[1751731933382,6.8032,146.96,146.94,195.4]
[1751731933680,6.8032,146.96,146.94,198.41502932]
[1751731934481,6.8032,146.96,146.95,3.01502932]
[1751731935283,2.4316,147.01,146.95,3.01502932]
[1751731935484,12.6121459,147.0,146.96,3.01502932]
[1751731935686,10.29115825,146.99,146.97,195.4]
[1751731935983,6.802,146.98,146.97,195.4]
[1751731943093,9.81702932,146.98,146.97,195.4]
[1751731943496,6.8032,146.96,146.94,3.01502932]
[1751731943686,6.8032,146.96,146.94,198.39502932]
[1751731944085,6.8032,146.96,146.95,3.01502932]
[1751731945493,6.8032,146.96,146.92,55.2428]
[1751731945693,6.8032,146.96,146.94,3.01502932]
[1751731945898,6.8034,146.95,146.93,195.38]
[1751731946199,3.01502932,146.97,146.93,198.41502932]
[1751731946399,6.8037,146.95,146.93,198.41502932]
[1751731946598,3.01502932,146.97,146.93,3.01502932]
[1751731946897,3.01502932,146.97,146.93,195.4]
[1751731947394,6.8038,146.95,146.93,195.4]
[1751731947590,3.01502932,146.96,146.93,195.4]
[1751731948594,6.8038,146.94,146.93,195.4]
[1751731949192,3.01502932,146.96,146.92,46.22]
[1751731949390,3.01502932,146.96,146.92,244.61502932]
[1751731950594,6.8043,146.94,146.92,244.61502932]
[1751731950797,6.8043,146.94,146.92,241.6]
[1751731950996,6.8043,146.94,146.92,244.61502932]
[1751731951197,6.8043,146.94,146.92,49.23502932]
[1751731951500,6.8043,146.94,146.92,244.61502932]
[1751731953401,6.30515684,147.0,146.93,3.01502932]
[1751731953402,6.8035,146.95,146.93,3.01502932]
[1751731953695,3.01502932,146.97,146.93,3.01502932]
[1751731953897,12.45541811,146.96,146.94,3.01502932]
[1751731954097,6.8031,146.96,146.94,3.01502932]
[1751731954609,5.44662932,147.01,146.95,198.41502932]
[1751731954796,12.60467694,147.0,146.99,3.01502932]
[1751731954997,6.9510796,147.0,146.99,198.45502932]
[1751731955200,6.30515684,147.05,146.99,198.45502932]
[1751731955401,17.05825074,147.04,147.01,3.01502932]
[1751731955598,15.62139607,147.03,146.99,195.44]
[1751731955799,10.28385112,147.02,147.0,3.01502932]
[1751731955999,6.30515684,147.05,146.99,198.45502932]
[1751731956200,6.8002,147.02,147.0,3.01502932]
[1751731957705,6.8006,147.01,147.0,3.01502932]
[1751731958006,12.45432347,147.01,146.99,195.44]
[1751731958305,6.8006,147.01,146.99,195.44]
[1751731960406,6.801,147.0,146.99,195.44]
[1751731960606,5.69079318,147.0,146.97,46.22]
[1751731960807,11.01356774,147.03,146.97,241.96]
[1751731961006,12.71506556,147.02,146.97,241.96]
[1751731961209,10.38276275,147.01,146.97,241.96]
[1751731961510,6.8019,146.99,146.97,241.96]
[1751731963510,6.8019,146.99,146.97,241.98]
[1751731967112,6.8013,147.0,146.97,241.98]
[1751731971113,6.8013,147.0,146.97,248.7824]
[1751731971318,6.8008,147.01,146.97,248.7824]
[1751731975325,6.8008,147.01,146.98,6.802]
[1751731975533,6.8008,147.01,146.99,195.64]
[1751731979729,6.8008,147.01,146.99,198.65366862]
[1751731980432,6.8004,147.02,146.99,198.65366862]
[1751731980631,3.01366862,147.03,146.99,198.65366862]
[1751731980820,10.35903215,147.02,146.99,198.65366862]
[1751731981021,6.8006,147.01,146.99,198.65366862]
[1751731983340,6.8003,147.02,146.99,198.65366862]
[1751731983640,3.01366862,147.03,146.99,195.64]
[1751731983842,10.35852117,147.02,146.99,198.65366862]
[1751731984037,6.8005,147.02,146.99,198.65366862]
[1751731985743,6.8007,147.01,146.99,198.65366862]
[1751731996553,92.93053408,147.06,147.0,3.01366862]
[1751731996753,17.16248267,147.05,147.01,3.01366862]
[1751731996953,12.68161434,147.04,147.01,3.01366862]
[1751731997157,10.35007746,147.03,147.01,3.01366862]
[1751731997350,89.63061259,147.06,147.01,3.01366862]
[1751731997649,3.01366862,147.03,147.0,195.44]
[1751731997955,10.35374796,147.02,147.0,195.44]
[1751731998157,6.8005,147.02,147.0,198.45366862]
[1751731998355,3.01366862,147.04,147.0,198.45366862]
[1751731998556,12.70305622,147.03,147.0,198.45366862]
[1751731998758,17.17042131,147.02,147.0,198.45366862]
[1751731998953,6.8006,147.02,147.0,198.45366862]
[1751731999354,4.70885681,147.01,147.0,198.45366862]
[1751732000457,6.8006,147.02,147.0,198.45366862]
[1751732001059,6.8006,147.01,147.0,195.44]
[1751732001250,11.51956147,147.01,147.0,198.45366862]
[1751732002049,6.8006,147.01,147.0,198.45366862]
[1751732003357,84.36454397,147.06,147.0,198.45366862]
[1751732003561,84.36454397,147.06,147.04,3.01366862]
[1751732003762,84.36454397,147.06,147.05,3.01366862]
[1751732004055,94.76060269,147.06,147.05,3.01366862]
[1751732004357,101.55890269,147.06,147.05,3.01366862]
[1751732004862,10.39605872,147.06,147.05,3.01366862]
[1751732005158,6.7977,147.08,147.05,3.01366862]
[1751732005353,6.7977,147.08,147.07,3.01366862]
[1751732005554,17.175174,147.08,147.07,3.01366862]
[1751732006160,11.50960805,147.08,147.07,3.01366862]
[1751732006461,6.7977,147.08,147.07,3.01366862]
[1751732008865,6.7978,147.07,147.06,3.01366862]
[1751732010157,7.5469888,147.11,147.04,195.7]
[1751732010362,15.80968157,147.1,147.06,3.01366862]
[1751732010562,6.7981,147.07,147.06,3.01366862]
[1751732021278,7.75818377,147.07,147.04,3.01366862]
[1751732021576,10.84483858,147.1,147.04,3.01366862]
[1751732021872,13.40953561,147.09,147.05,3.01366862]
[1751732022072,10.39586699,147.08,147.05,3.01366862]
[1751732022278,6.7985,147.06,147.05,3.01366862]
[1751732022973,6.798,147.07,147.05,3.01366862]
[1751732023278,6.798,147.07,147.06,3.01366862]
[1751732029576,6.798,147.07,147.04,9.1895]
[1751732029876,6.798,147.07,147.06,3.01366862]
[1751732043786,2.2909,147.11,147.06,3.01366862]
[1751732044094,10.4263259,147.1,147.09,3.01366862]
[1751732044389,6.7971,147.09,147.08,3.01366862]
[1751732044591,11.55334234,147.09,147.08,3.01366862]
[1751732045088,17.22154959,147.09,147.08,3.01366862]
[1751732045289,6.7975,147.08,147.05,6.7985]
[1751732045488,3.01366862,147.1,147.06,3.01366862]
[1751732045688,10.42333977,147.09,147.06,3.01366862]
[1751732045994,4.75558317,147.08,147.06,3.01366862]
[1751732046190,4.7551156,147.07,147.05,3.01366862]
[1751732046493,6.7981,147.07,147.05,3.01366862]
[1751732046695,4.7574873,147.06,147.05,3.01366862]
[1751732046894,6.7981,147.07,147.05,3.01366862]
[1751732047390,4.7603744,147.06,147.05,3.01366862]
[1751732048190,10.42996541,147.06,147.05,3.01366862]
[1751732048590,17.22826541,147.06,147.05,3.01366862]
[1751732050292,17.22273684,147.06,147.05,3.01366862]
[1751732053197,17.21552449,147.06,147.05,3.01366862]
[1751732064804,10.41722449,147.06,147.02,46.3]
[1751732065007,4.75316205,147.05,147.04,3.01366862]
[1751732065308,11.55186205,147.05,147.04,3.01366862]
[1751732067109,17.21537129,147.05,147.04,3.01366862]
[1751732071214,19.54252957,147.05,147.04,3.01366862]
[1751732072116,17.21537129,147.05,147.04,3.01366862]
[1751732072415,17.21537129,147.05,147.04,2.91366862]
[1751732077517,11.55186205,147.05,147.04,2.91366862]
[1751732081117,6.7993,147.04,147.02,46.3]
[1751732081311,6.7993,147.04,147.03,3.01366862]
[1751732100821,6.7997,147.03,147.02,46.3]
[1751732101029,12.46248592,147.03,147.02,46.3]
[1751732102024,6.8006,147.01,146.99,3.01366862]
[1751732102227,3.01366862,147.04,146.99,3.01366862]
[1751732102427,13.39947983,147.03,146.99,3.01366862]
[1751732102628,5.65962598,147.02,146.99,3.01366862]
[1751732102931,3.01366862,147.03,146.99,3.01366862]
[1751732103133,6.8008,147.01,146.99,3.01366862]
[1751732105026,6.8008,147.01,147.0,3.01366862]
[1751732111737,6.802,146.98,146.97,46.24]
[1751732111938,6.802,146.98,146.97,49.25366862]
[1751732115236,6.8017,146.99,146.97,49.25366862]
[1751732115540,6.8017,146.99,146.98,3.01366862]
[1751732116539,6.8017,146.99,146.97,241.64]
[1751732116740,6.8017,146.99,146.98,3.01366862]
[1751732119536,6.8012,147.0,146.98,3.01366862]
[1751732119741,6.8012,147.0,146.99,3.01366862]
[1751732120038,8.59092589,147.06,146.99,3.01366862]
[1751732120241,85.18979053,147.08,147.05,3.01366862]
[1751732120440,12.57917992,147.07,147.05,3.01366862]
[1751732120640,85.18979053,147.08,147.05,3.01366862]
[1751732120641,17.05559578,147.06,147.05,3.01366862]
[1751732121741,6.7983,147.06,147.05,3.01366862]
[1751732128543,6.6983,147.06,147.05,3.01366862]
[1751732132856,6.798,147.07,147.05,3.01366862]
[1751732133154,85.18979053,147.08,147.06,3.01366862]
[1751732133456,85.18979053,147.08,147.07,3.01366862]
[1751732133656,95.54243715,147.08,147.07,3.01366862]
[1751732134549,102.33983715,147.08,147.07,3.01366862]
[1751732134954,17.15004662,147.08,147.07,3.01366862]
[1751732136457,12.44077811,147.08,147.07,3.01366862]
[1751732136653,17.14345719,147.08,147.07,3.01366862]
[1751732137159,6.7978,147.07,147.06,3.01366862]
[1751732138954,3.01366862,147.08,147.04,3.01366862]
[1751732139158,5.64889094,147.07,147.04,3.01366862]
[1751732139362,3.01366862,147.05,147.01,3.01366862]
[1751732139554,3.01366862,147.05,147.01,198.35366862]
[1751732139752,6.8001,147.03,147.01,198.35366862]
[1751732140065,6.8001,147.03,147.02,3.01366862]
[1751732142866,3.01366862,147.04,147.0,49.23366862]
[1751732143159,3.01366862,147.02,146.96,48.6051]
[1751732143463,6.8016,146.99,146.97,198.35366862]
[1751732143660,6.8016,146.99,146.97,3.01366862]
[1751732143861,6.8016,146.99,146.97,198.35366862]
[1751732144964,6.8012,147.0,146.98,3.01366862]
[1751732147963,6.8012,147.0,146.98,198.37366862]
[1751732148558,6.8012,147.0,146.98,3.01366862]
[1751732148765,6.8012,147.0,146.98,198.37366862]
[1751732150559,6.8012,147.0,146.98,195.36]
[1751732150765,6.8012,147.0,146.99,3.01366862]
[1751732157470,6.8008,147.01,146.99,3.01366862]
[1751732157770,6.8008,147.01,147.0,3.01366862]
[1751732157972,6.8008,147.01,146.99,3.01366862]
[1751732158769,6.8008,147.01,147.0,3.01366862]
[1751732171882,6.8011,147.0,146.98,195.36]
[1751732172083,6.8011,147.0,146.99,3.01366862]
[1751732174988,6.8009,147.01,146.99,3.01366862]
[1751732175286,6.8009,147.01,147.0,3.01366862]
[1751732178487,6.8009,147.01,146.99,3.01366862]
[1751732179889,6.8009,147.01,147.0,3.01366862]
[1751732185595,6.8012,147.0,146.98,195.36]
[1751732185896,6.8012,147.0,146.99,3.01366862]
[1751732186098,6.8008,147.01,146.99,3.01366862]
[1751732190003,6.8003,147.02,147.0,3.01366862]
[1751732192505,6.8003,147.02,147.01,3.01366862]
[1751732192703,10.32405522,147.02,147.01,3.01366862]
[1751732195307,6.7999,147.03,147.01,3.01366862]
[1751732195711,12.44491196,147.02,147.01,3.01366862]
[1751732196008,17.12737775,147.02,147.01,3.01366862]
[1751732201619,6.7999,147.03,147.01,3.01366862]
[1751732201812,6.7999,147.03,147.02,3.01366862]
[1751732202118,17.15037131,147.03,147.02,3.01366862]
[1751732203118,10.35047131,147.03,147.02,3.01366862]
[1751732203321,6.32582589,147.07,147.02,3.01366862]
[1751732203520,12.6614709,147.06,147.04,3.01366862]
[1751732203711,6.7985,147.06,147.05,3.01366862]
[1751732204015,4.69408986,147.06,147.05,3.01366862]
[1751732204218,6.7977,147.08,147.05,3.01366862]
[1751732204518,10.34282131,147.07,147.04,6.7988]
[1751732204819,8.62432589,147.13,147.04,195.26]
[1751732205009,2.2492,147.14,147.04,195.26]
[1751732205010,12.65359644,147.12,147.05,4.4276]
[1751732205214,46.2,147.17,147.05,6.7158]
[1751732205512,6.7947,147.14,147.05,6.7158]
[1751732205712,6.7947,147.14,147.13,3.01366862]
[1751732205908,17.11752082,147.14,147.13,3.01366862]
[1751732206108,11.47862092,147.14,147.13,3.01366862]
[1751732206513,3.01366862,147.18,147.13,3.01366862]
[1751732206713,7.93677414,147.17,147.15,3.01366862]
[1751732206914,2.30704628,147.17,147.15,3.01366862]
[1751732207115,6.794,147.16,147.15,3.01366862]
[1751732207317,6.794,147.16,147.14,3.01366862]
[1751732207620,6.794,147.16,147.15,3.01366862]
[1751732207813,6.794,147.16,147.11,2.2655]
[1751732208010,6.7941,147.15,147.14,3.01366862]
[1751732208211,3.01366862,147.18,147.14,3.01366862]
[1751732208612,12.4110894,147.17,147.14,3.01366862]
[1751732208818,6.7935,147.17,147.14,3.01366862]
[1751732209715,6.7935,147.17,147.12,11.49467516]
[1751732211323,6.7937,147.16,147.12,11.49467516]
[1751732213920,6.7937,147.16,147.12,4.69927516]
[1751732214218,6.7941,147.15,147.12,4.69927516]
[1751732220524,6.7946,147.14,147.12,4.69927516]
[1751732221527,6.7943,147.15,147.12,4.69927516]
[1751732221730,6.7943,147.15,147.12,11.49437516]
[1751732222129,9.24697516,147.2,147.12,4.69927516]
[1751732222336,4.77209869,147.19,147.12,4.69927516]
[1751732222634,6.7944,147.15,147.12,4.69927516]
[1751732223230,6.7944,147.15,147.12,245.99927516]
[1751732223635,6.7944,147.15,147.12,252.79467516]
[1751732225235,4.5477,147.2,147.12,245.99927516]
[1751732225434,4.76852755,147.19,147.12,245.99927516]
[1751732225629,9.24697516,147.2,147.12,245.99927516]
[1751732225830,9.24697516,147.2,147.13,6.7948]
[1751732226727,4.5477,147.2,147.13,6.7948]
[1751732226925,6.7934,147.17,147.13,6.7948]
[1751732227130,6.7934,147.17,147.14,4.69927516]
[1751732227636,6.7934,147.17,147.14,11.49377516]
[1751732228033,6.7934,147.17,147.14,4.69927516]
[1751732229538,6.7937,147.16,147.14,4.69927516]
[1751732230236,6.7937,147.16,147.12,248.0953]
[1751732230536,6.7937,147.16,147.13,4.69927516]
[1751732231533,6.7941,147.15,147.13,4.69927516]
[1751732231729,4.5477,147.2,147.14,3.00751617]
[1751732231934,3.00751617,147.18,147.14,3.00751617]
[1751732232137,6.794,147.16,147.12,248.0953]
[1751732232335,6.794,147.16,147.14,3.00751617]
[1751732233637,3.00751617,147.18,147.12,241.3]
[1751732233841,3.00751617,147.18,147.14,3.00751617]
[1751732234338,3.00751617,147.17,147.14,3.00751617]
[1751732234537,6.7941,147.15,147.14,3.00751617]
[1751732237233,6.7941,147.15,147.12,241.3]
[1751732237440,6.7948,147.14,147.13,3.00751617]
[1751732237636,6.7948,147.14,147.12,241.3]
[1751732237940,6.7948,147.14,147.13,3.00751617]
[1751732239841,6.7943,147.15,147.13,3.00751617]
[1751732240041,6.7943,147.15,147.14,3.00751617]
[1751732240235,6.7943,147.15,147.12,241.3]
[1751732240441,6.7943,147.15,147.14,3.00751617]
[1751732240642,6.7938,147.16,147.14,3.00751617]
[1751732240843,6.7938,147.16,147.15,3.00751617]
[1751732241036,6.7938,147.16,147.15,198.38751617]
[1751732241542,6.7933,147.17,147.15,198.38751617]
[1751732241735,6.7933,147.17,147.16,3.00751617]
[1751732244448,2.2985,147.2,147.16,9.80111617]
[1751732244743,10.34983796,147.19,147.18,3.00751617]
[1751732245647,17.14243796,147.19,147.18,3.00751617]
[1751732246042,12.37871911,147.19,147.18,3.00751617]
[1751732246238,17.14652199,147.19,147.18,3.00751617]
[1751732246446,6.7928,147.18,147.15,202.1739]
[1751732246647,4.76780288,147.17,147.15,202.1739]
[1751732246843,6.7928,147.18,147.15,195.38]
[1751732247047,4.77293534,147.17,147.15,195.38]
[1751732247249,4.77896932,147.16,147.15,195.38]
[1751732247751,6.7928,147.18,147.15,205.18161617]
[1751732247951,6.7928,147.18,147.17,3.00751617]
[1751732248152,11.57230645,147.18,147.17,3.00751617]
[1751732248450,17.19584708,147.18,147.17,3.00751617]
[1751732249151,17.2228212,147.18,147.17,3.00751617]
[1751732249448,19.54005366,147.18,147.17,3.00751617]
[1751732250648,17.2228212,147.18,147.17,3.00751617]
[1751732251054,10.4300212,147.18,147.17,3.00751617]
[1751732252555,17.2227212,147.18,147.17,3.00751617]
[1751732253051,19.53994992,147.18,147.17,3.00751617]
[1751732253251,17.2227212,147.18,147.17,3.00751617]
[1751732253647,10.4300212,147.18,147.17,3.00751617]
[1751732254049,4.80648057,147.18,147.17,3.00751617]
[1751732257464,6.7925,147.19,147.17,3.00751617]
[1751732257655,6.7925,147.19,147.18,3.00751617]
[1751732257857,17.25183548,147.19,147.18,3.00751617]
[1751732258059,19.55909394,147.19,147.18,3.00751617]
[1751732258467,17.25183548,147.19,147.18,3.00751617]
[1751732262169,17.25183548,147.19,147.16,195.28]
[1751732262464,6.7925,147.19,147.18,3.00751617]
[1751732262665,17.28232942,147.19,147.18,3.00751617]
[1751732264171,6.7928,147.18,147.16,195.28]
[1751732264469,6.7928,147.18,147.17,3.00751617]
[1751732264655,17.26575404,147.18,147.17,3.00751617]
[1751732265365,11.60214763,147.18,147.17,3.00751617]
[1751732267468,4.80934763,147.18,147.16,198.28751617]
[1751732267771,11.60254763,147.17,147.15,49.22751617]
[1751732267969,4.80934763,147.16,147.13,2.2675]
[1751732268278,4.81000508,147.15,147.11,46.22]
[1751732268463,3.00751617,147.13,147.09,46.22]
[1751732268668,4.81000508,147.14,147.09,46.22]
[1751732268669,7.80645325,147.12,147.09,46.22]
[1751732268872,7.80645325,147.11,147.09,46.22]
[1751732269077,4.79893708,147.1,147.09,46.22]
[1751732269372,11.59533708,147.1,147.09,46.22]
[1751732271473,6.7964,147.1,147.09,46.22]
[1751732273372,6.7961,147.11,147.06,7.14976664]
[1751732273571,4.70346664,147.13,147.07,195.32]
[1751732273772,10.33848961,147.12,147.07,195.32]
[1751732273966,4.70346664,147.13,147.07,195.32]
[1751732274169,10.33848961,147.12,147.07,195.32]
[1751732274368,4.70346664,147.13,147.07,195.32]
[1751732274565,6.7965,147.1,147.07,195.32]
[1751732274770,6.7965,147.1,147.06,13.94796664]
[1751732274970,6.7965,147.1,147.07,195.3]
[1751732275870,4.70346664,147.13,147.06,48.6863]
[1751732276070,4.70346664,147.11,147.06,241.6]
[1751732276269,4.70011895,147.1,147.06,241.6]
[1751732276575,4.70346664,147.11,147.06,241.6]
[1751732276780,6.7976,147.08,147.06,241.6]
[1751732277075,6.7976,147.08,147.06,46.24]
[1751732277270,6.7976,147.08,147.06,241.58]
[1751732278775,4.5285,147.12,147.06,241.58]
[1751732278971,5.58545587,147.11,147.06,241.58]
[1751732279176,4.5285,147.12,147.06,241.58]
[1751732280476,6.7972,147.09,147.06,241.58]
[1751732280977,4.5285,147.12,147.06,241.58]
[1751732281478,6.7973,147.09,147.06,241.58]
[1751732281978,6.7974,147.08,147.06,241.58]
[1751732291784,6.7974,147.08,147.06,244.59066013]
[1751732293584,6.7974,147.08,147.06,49.25066013]
[1751732293786,6.7974,147.08,147.07,195.48]
[1751732295080,6.7974,147.08,147.07,198.49066013]
[1751732296486,6.7974,147.08,147.07,195.48]
[1751732296682,9.80806013,147.08,147.07,195.48]
[1751732297187,6.7983,147.06,147.04,3.01066013]
[1751732297385,4.61627491,147.11,147.05,195.94]
[1751732297582,3.01066013,147.1,147.06,3.01066013]
[1751732297887,2.2752,147.12,147.07,200.6439204]
[1751732298082,46.22,147.15,147.07,200.6439204]
[1751732298282,50.9239204,147.15,147.07,200.6439204]
[1751732298682,50.9239204,147.15,147.07,246.9239204]
[1751732298987,6.7963,147.11,147.07,253.7217204]
[1751732300490,6.7964,147.1,147.07,246.9239204]
[1751732300682,4.7039204,147.13,147.07,246.9239204]
[1751732300882,4.7039204,147.11,147.07,46.28]
[1751732301092,6.7969,147.09,147.08,196.06]
[1751732301390,4.7039204,147.11,147.06,196.12]
[1751732301889,6.7978,147.07,147.06,196.12]
[1751732302888,6.7976,147.08,147.06,196.12]
[1751732308881,6.797,147.09,147.06,196.12]
[1751732315497,6.7966,147.1,147.06,202.918]
[1751732315697,10.30302648,147.09,147.06,202.918]
[1751732315995,6.30068788,147.12,147.06,202.918]
[1751732316199,6.7966,147.1,147.06,202.918]
[1751732316497,10.30555996,147.09,147.06,202.918]
[1751732316697,6.7966,147.1,147.06,202.918]
[1751732316903,10.30760425,147.09,147.06,202.918]
[1751732317101,6.7966,147.1,147.06,202.918]
[1751732317402,10.30789933,147.09,147.06,202.918]
[1751732317697,6.7966,147.1,147.06,202.918]
[1751732317904,10.30818355,147.09,147.06,202.918]
[1751732318202,6.7966,147.1,147.06,202.918]
[1751732318405,10.30860535,147.09,147.06,202.918]
[1751732318596,6.7966,147.1,147.06,202.918]
[1751732318900,10.30858734,147.09,147.06,202.918]
[1751732319099,6.7966,147.1,147.06,202.918]
[1751732319300,10.30902583,147.09,147.06,202.918]
[1751732319502,6.7969,147.09,147.06,202.918]
[1751732321105,6.7973,147.08,147.06,202.918]
[1751732321900,6.7971,147.09,147.06,202.918]
[1751732325807,6.7971,147.09,147.07,9.80784672]
[1751732328708,6.7971,147.09,147.06,196.12]
[1751732328709,9.3107346,147.14,147.08,3.01004672]
[1751732329005,17.17148401,147.13,147.1,3.01004672]
[1751732329208,12.6055106,147.12,147.1,3.01004672]
[1751732329402,10.3116388,147.11,147.1,3.01004672]
[1751732329902,17.1076388,147.11,147.1,3.01004672]
[1751732331709,17.11810201,147.11,147.1,3.01004672]
[1751732331902,17.11810201,147.11,147.08,11.4989077]
[1751732332201,10.32210201,147.1,147.08,11.4989077]
[1751732332398,6.796,147.11,147.08,11.4989077]
[1751732332704,17.12396535,147.1,147.07,13.9102077]
[1751732332906,11.00249558,147.14,147.07,246.9018077]
[1751732333106,23.48870757,147.13,147.07,246.9018077]
[1751732333307,17.18801969,147.12,147.07,246.9018077]
[1751732333505,12.62202417,147.11,147.07,242.2]
[1751732333701,10.32813387,147.1,147.07,242.2]
[1751732333906,6.30068788,147.13,147.07,242.2]
[1751732334111,17.21361161,147.12,147.07,242.2]
[1751732334304,12.63587912,147.11,147.07,242.2]
[1751732334505,10.33880849,147.1,147.07,242.2]
[1751732334707,4.66767924,147.09,147.07,242.2]
[1751732334913,6.30068788,147.13,147.07,242.2]
[1751732335110,17.22846084,147.12,147.07,242.2]
[1751732335307,12.65078508,147.11,147.07,242.2]
[1751732335507,17.15044292,147.1,147.07,242.2]
[1751732335807,4.68851667,147.09,147.07,242.2]
[1751732336008,6.7967,147.1,147.07,242.2]
[1751732336209,10.35466458,147.09,147.07,248.9977]
[1751732336513,6.30068788,147.13,147.07,242.14]
[1751732336712,17.23299349,147.12,147.07,242.14]
[1751732336914,6.7967,147.1,147.07,242.14]
[1751732337115,10.35604252,147.09,147.07,242.14]
[1751732337306,6.7967,147.1,147.07,242.14]
[1751732337508,6.30068788,147.12,147.07,46.44]
[1751732337509,6.7973,147.08,147.07,46.44]
[1751732337710,10.35596506,147.08,147.07,46.44]
[1751732339517,17.15326506,147.08,147.07,46.44]
[1751732339816,10.35596506,147.08,147.04,51.1618077]
[1751732340015,6.30068788,147.11,147.05,195.64]
[1751732340217,6.7978,147.07,147.05,195.64]
[1751732340613,4.7018077,147.1,147.03,2.4249]
[1751732340911,4.7018077,147.08,147.03,2.4249]
[1751732341112,12.61502596,147.07,147.03,2.4249]
[1751732341318,4.7018077,147.08,147.03,2.4249]
[1751732341319,6.799,147.05,147.03,2.4249]
[1751732342518,4.7018077,147.08,147.01,4.7018077]
[1751732342720,12.60872016,147.07,147.01,195.62]
[1751732343016,10.31588353,147.06,147.0,633.54]
[1751732343216,10.31588353,147.05,147.01,195.68]
[1751732343416,11.00249558,147.08,147.01,195.68]
[1751732343718,6.7996,147.04,147.01,195.68]
[1751732345418,11.00249558,147.08,147.02,195.66]
[1751732345419,6.7998,147.03,147.02,195.66]
[1751732346719,6.7998,147.03,147.0,242.08]
[1751732346720,10.23889002,147.03,147.0,242.08]
[1751732346922,4.7018077,147.06,147.0,242.08]
[1751732347117,12.53821089,147.05,147.0,46.46]
[1751732347318,6.8004,147.02,147.0,242.08]
[1751732347620,4.7018077,147.06,147.0,242.08]
[1751732347815,12.53096509,147.05,147.0,242.08]
[1751732348018,6.8005,147.02,147.0,242.08]
[1751732348525,6.8005,147.02,147.0,242.06]
[1751732348710,6.8006,147.01,147.0,242.06]
[1751732349113,6.8006,147.01,146.98,2.4302]
[1751732349323,6.8009,147.01,146.99,195.6]
[1751732351821,6.8011,147.0,146.98,48.8902]
[1751732352027,6.8011,147.0,146.99,195.58]
[1751732352220,4.7018077,147.04,146.99,195.58]
[1751732352421,2.3183,147.05,146.99,195.58]
[1751732352714,10.16203113,147.04,146.99,195.58]
[1751732352919,6.8008,147.01,146.99,195.58]
[1751732354122,4.7018077,147.02,146.93,591.8818077]
[1751732354322,10.15467788,147.01,146.93,638.2018077]
[1751732354528,5.58841869,147.0,146.94,195.6]
[1751732354728,4.7018077,147.02,146.94,195.6]
[1751732354926,10.15438757,147.01,146.94,195.6]
[1751732355132,4.7018077,147.02,146.94,195.6]
[1751732355327,10.14832209,147.01,146.94,195.6]
[1751732355525,4.7018077,147.02,146.94,195.6]
[1751732355730,10.14801945,147.01,146.94,195.6]
[1751732355928,6.8023,146.98,146.94,195.6]
[1751732356831,6.8023,146.98,146.93,645.0057077]
[1751732357041,6.8023,146.98,146.95,195.58]
[1751732357332,6.8025,146.97,146.95,195.58]
[1751732358126,6.8025,146.97,146.93,645.0057077]
[1751732358325,6.8025,146.97,146.94,195.58]
[1751732363334,6.8025,146.97,146.95,195.56]
[1751732367635,6.8021,146.98,146.95,195.56]
[1751732368038,4.7018077,147.0,146.95,195.56]
[1751732368838,6.8023,146.98,146.95,195.56]
[1751732369834,53.3401077,147.05,146.97,4.7018077]
[1751732370041,53.3401077,147.05,146.98,195.5]